fUSD/lending_fUSD_20251113
["ID","MTS","AMOUNT","RATE_DAILY","PERIOD"]
[393799461,1762998631826,-151.0,0.00032213,2]
[393799462,1762998631840,-151.0,0.00032213,2]
[393799463,1762998631850,-151.0,0.00032213,2]
[393799464,1762998631859,-151.0,0.00032213,2]
[393799465,1762998631868,-151.0,0.00032213,2]
[393799466,1762998631878,-151.0,0.00032213,2]
[393799467,1762998631887,-151.0,0.00032213,2]
[393799468,1762998631896,-151.0,0.00032213,2]
[393799470,1762998631906,-151.0,0.00032213,2]
[393799471,1762998631914,-151.0,0.00032213,2]
[393799473,1762998631923,-151.0,0.00032213,2]
[393799475,1762998631934,-167.75162175,0.00032213,2]
[393799478,1762998631943,-1121.04789632,0.00032231,2]
[393799480,1762998631953,-150.99,0.00032232,2]
[393799481,1762998631962,-9999.99,0.00032232,2]
[393799482,1762998631972,-9999.99,0.00032232,2]
[393799483,1762998631982,-4058.23,0.00032232,2]
[393799484,1762998631991,-2554.15,0.00032232,2]
[393799485,1762998632001,-1023.97,0.00032232,2]
[393799486,1762998632010,-477.7,0.00033165,2]
[393799488,1762998632020,-2000.0,0.000332,2]
[393799490,1762998632030,-185.419,0.00033336,35]
[393799492,1762998632039,-940.865,0.00033336,35]
[393799494,1762998632048,-509.78090184,0.000338,5]
[393799495,1762998632057,-18618.0,0.00033881,2]
[393799496,1762998632067,-153.0,0.00034637,2]
[393799497,1762998632077,-153.0,0.00034637,2]
[393799498,1762998632086,-153.0,0.00034637,2]
[393799499,1762998632095,-153.0,0.00034637,2]
[393799500,1762998632104,-153.0,0.00034637,2]
[393799501,1762998632114,-153.0,0.00034637,2]
[393799502,1762998632124,-153.0,0.00034639,2]
[393799503,1762998632134,-153.0,0.00034639,2]
[393799504,1762998632143,-153.0,0.00034658,2]
[393799505,1762998632153,-153.0,0.00034658,2]
[393799506,1762998632163,-153.0,0.00034658,2]
[393799507,1762998632172,-153.0,0.00034658,2]
[393799508,1762998632182,-153.0,0.00034658,2]
[393799509,1762998632191,-153.0,0.00034658,2]
[393799510,1762998632200,-153.0,0.00034659,2]
[393799511,1762998632209,-153.0,0.00034659,2]
[393799512,1762998632219,-153.0,0.00034678,2]
[393799513,1762998632229,-153.0,0.00034678,2]
[393799514,1762998632239,-153.0,0.00034678,2]
[393799515,1762998632249,-153.0,0.00034678,2]
[393799516,1762998632258,-153.0,0.00034678,2]
[393799517,1762998632270,-153.0,0.00034678,2]
[393799518,1762998632280,-153.0,0.0003468,2]
[393799519,1762998632289,-153.0,0.0003468,2]
[393799520,1762998632298,-342.91,0.00034766,30]
[393799521,1762998632308,-1000.0,0.00034849,2]
[393799522,1762998632317,-2326.1,0.00034865,2]
[393799523,1762998632327,-196.59467761,0.00035006,2]
[393799524,1762998632336,-1201.63,0.00035106,120]
[393799525,1762998632346,-1000.0,0.00035283,2]
[393799526,1762998632355,-23341.50917682,0.00035332,2]
[393799527,1762998632535,-500.0,0.00035332,2]
[393799528,1762998632546,-715.03257013,0.00035332,2]
[393799529,1762998632557,-5540.13994313,0.00035332,2]
[393799530,1762998632568,-680.94687656,0.00035332,2]
[393799531,1762998632586,-1847.3258989,0.00035332,2]
[393799532,1762998632597,-2774.295589,0.00035332,2]
[393799533,1762998632609,-3440.53710003,0.00035332,2]
[393799534,1762998632621,-35867.20284543,0.00035332,2]
[393799535,1762998632630,-4205.35,0.00035361,2]
[393799536,1762998632640,-150.0,0.00035767,2]
[393799537,1762998632649,-549.02555383,0.000359,5]
[393799538,1762998632658,-1852.42,0.00035972,2]
[393799539,1762998632667,-1189.98,0.00036,2]
[393799540,1762998632676,-200.0,0.00036079,2]
[393799541,1762998632686,-150.0,0.00036567,7]
[393799542,1762998632695,-1000.91695895,0.00036601,30]
[393799543,1762998632704,-1189.98,0.0003672,2]
[393799544,1762998632713,-182.17,0.00036758,2]
[393799545,1762998632723,-2000.0,0.000368,2]
[393799546,1762998632732,-211.0,0.0003689,30]
[393799547,1762998632741,-1031.0,0.00036986,30]
[393799548,1762998632751,-166.66,0.00037149,30]
[393799549,1762998632761,-183.650211,0.000372,120]
[393799550,1762998632770,-1928.04,0.00037201,2]
[393799551,1762998632779,-200.0,0.00037385,2]
[393799552,1762998632788,-999.0,0.00037537,3]
[393799553,1762998632798,-150.0,0.00037921,7]
[393799554,1762998632808,-166.66,0.00037931,30]
[393799555,1762998632817,-2373.01987496,0.00038371,5]
[393799556,1762998632827,-1491.0,0.00038383,2]
[393799557,1762998632839,-1487.0,0.00038623,120]
[393799558,1762998632848,-699.48,0.00038712,2]
[393799559,1762998632858,-480.47,0.00038712,2]
[393799560,1762998632867,-477.77,0.00038712,2]
[393799561,1762998632877,-166.66,0.00038713,30]
[393799562,1762998632886,-250.0,0.00038759,2]
[393799563,1762998632895,-211.0,0.0003891,30]
[393799564,1762998632904,-171.07,0.00039,120]
[393799565,1762998632914,-1000.0,0.00039205,2]
[393799566,1762998632923,-150.0,0.00039276,7]
[393799567,1762998632933,-1487.0,0.00039303,2]
[393799568,1762998632942,-500.0,0.00039404,30]
[393799569,1762998632951,-166.66,0.00039495,30]
[393799570,1762998632960,-5654.69385603,0.00039529,2]
[393799571,1762998632970,-226.13841624,0.0003953,2]
[393799572,1762998632979,-2500.0,0.0003953,2]
[393799573,1762998632988,-1000.0,0.00039539,2]
[393799574,1762998632997,-20941.98427068,0.00039544,2]
[393799575,1762998633006,-177.31259115,0.00039546,15]
[393799576,1762998633016,-285.53,0.0003962,2]
[393799577,1762998633026,-285.53,0.0003962,2]
[393799578,1762998633035,-247.34363529,0.00039629,2]
[393799579,1762998633044,-204.20954214,0.00039629,7]
[393799580,1762998633054,-500.0,0.00039629,15]
[393799581,1762998633063,-500.0,0.00039629,15]
[393799582,1762998633072,-231.20855382,0.00039629,15]
[393799583,1762998633081,-500.0,0.00039629,15]
[393799584,1762998633091,-500.0,0.00039629,15]
[393799585,1762998633100,-500.0,0.00039629,15]
[393799586,1762998633109,-500.0,0.00039629,15]
[393799587,1762998633118,-500.0,0.00039629,15]
[393799588,1762998633127,-500.0,0.00039629,15]
[393799589,1762998633137,-500.0,0.00039629,15]
[393799590,1762998633146,-579.23061874,0.00039629,15]
[393799591,1762998633156,-500.0,0.00039629,15]
[393799592,1762998633165,-500.0,0.00039629,15]
[393799593,1762998633174,-500.0,0.00039629,15]
[393799594,1762998633183,-500.0,0.00039629,15]
[393799595,1762998633193,-500.0,0.00039629,15]
[393799596,1762998633202,-500.0,0.00039629,15]
[393799597,1762998633211,-500.0,0.00039629,15]
[393799598,1762998633220,-500.0,0.00039629,15]
[393799599,1762998633229,-500.0,0.00039629,15]
[393799600,1762998633239,-500.0,0.00039629,15]
[393799601,1762998633249,-500.0,0.00039629,15]
[393799602,1762998633259,-500.0,0.00039629,15]
[393799603,1762998633269,-500.0,0.00039629,15]
[393799604,1762998633279,-500.0,0.00039629,15]
[393799605,1762998633288,-500.0,0.00039629,15]
[393799606,1762998633297,-500.0,0.00039629,15]
[393799607,1762998633307,-500.0,0.00039629,15]
[393799608,1762998633316,-500.0,0.00039629,15]
[393799609,1762998633325,-500.0,0.00039629,15]
[393799610,1762998633335,-500.0,0.00039629,15]
[393799611,1762998633344,-500.0,0.00039629,15]
[393799612,1762998633354,-500.0,0.00039629,15]
[393799613,1762998633363,-500.0,0.00039629,15]
[393799614,1762998633374,-500.0,0.00039629,15]
[393799615,1762998633383,-500.0,0.00039629,15]
[393799616,1762998633392,-500.0,0.00039629,15]
[393799617,1762998633401,-500.0,0.00039629,15]
[393799618,1762998633411,-500.0,0.00039629,15]
[393799619,1762998633421,-500.0,0.00039629,15]
[393799620,1762998633431,-192.40181835,0.00039629,15]
[393799621,1762998633440,-500.0,0.00039629,15]
[393799622,1762998633449,-500.0,0.00039629,15]
[393799623,1762998633458,-500.0,0.00039629,15]
[393799624,1762998633467,-500.0,0.00039629,15]
[393799625,1762998633478,-500.0,0.00039629,15]
[393799626,1762998633487,-500.0,0.00039629,15]
[393799627,1762998633496,-500.0,0.00039629,15]
[393799628,1762998633506,-500.0,0.00039629,15]
[393799629,1762998633515,-500.0,0.00039629,15]
[393799630,1762998633526,-500.0,0.00039629,15]
[393799631,1762998633535,-350.0,0.00039629,15]
[393799632,1762998633545,-500.0,0.00039629,15]
[393799633,1762998633554,-500.0,0.00039629,15]
[393799634,1762998633564,-500.0,0.00039629,15]
[393799635,1762998633573,-500.0,0.00039629,15]
[393799636,1762998633583,-500.0,0.00039629,15]
[393799637,1762998633592,-500.0,0.00039629,15]
[393799638,1762998633601,-500.0,0.00039629,15]
[393799639,1762998633611,-500.0,0.00039629,15]
[393799640,1762998633620,-500.0,0.00039629,15]
[393799641,1762998633630,-103930.1150134,0.0003963,4]
[393799642,1762998633643,-54865.1136396,0.0003963,4]
[393799643,1762998633652,-18428.29177696,0.0003963,4]
[393799644,1762998633664,-3218.07558014,0.0003963,4]
[393799645,1762998633673,-285.53,0.0003963,2]
[393799646,1762998633683,-285.53,0.0003963,2]
[393799647,1762998633692,-285.53,0.0003963,2]
[393799648,1762998633702,-803.42968883,0.0003963,2]
[393799649,1762998633711,-740.6,0.00039639,30]
[393799650,1762998633721,-177414.69104688,0.0003964,2]
[393799658,1762998637592,-1114.57566831,0.0003953,2]
[393799659,1762998637604,-1385.42433169,0.0003953,2]
[393799660,1762998637614,-1175.14186294,0.0003964,2]
[393799661,1762998637647,-5793.37851442,0.0003964,2]
[393799662,1762998637658,-32020.21421943,0.0003964,2]
[393799663,1762998637702,-564.0886184,0.0003964,2]
[393799664,1762998637714,-669.2537798,0.0003964,2]
[393799665,1762998637758,-3636.22204491,0.0003964,2]
[393799667,1762998637770,-19566.46543479,0.0003964,2]
[393799680,1762998639749,-21041.26209405,0.0003964,2]
[393799681,1762998639762,-4099.11778948,0.0003964,2]
[393799682,1762998639774,-6040.21632456,0.0003964,2]
[393799683,1762998639913,-2379.43435485,0.0003964,2]
[393799684,1762998639925,-7684.8333239,0.0003964,2]
[393799685,1762998639937,-1073.70500007,0.0003964,2]
[393799686,1762998639976,-32745.42025123,0.0003964,2]
[393799687,1762998639988,-28703.44614917,0.0003964,2]
[393799688,1762998640000,-3789.41181935,0.0003964,2]
[393799689,1762998640016,-453.46300472,0.0003964,2]
[393799690,1762998640034,-743.85094811,0.0003964,2]
[393799696,1762998642869,-70406.38341894,0.0003964,2]
[393799697,1762998642878,-5654.69385597,0.00039643,2]
[393799698,1762998642889,-14435.9298776,0.00039646,4]
[393799699,1762998642899,-10823.1836785,0.00039646,4]
[393799700,1762998642908,-232.22943516,0.00039653,11]
[393799701,1762998642918,-477.7,0.00039654,2]
[393799702,1762998642930,-20941.98427059,0.00039656,2]
[393799703,1762998642940,-177.31259109,0.00039658,15]
[393799704,1762998642949,-10823.1836785,0.0003966,4]
[393799705,1762998642958,-7217.96493878,0.00039661,4]
[393799706,1762998642968,-699.48,0.00039671,2]
[393799707,1762998642977,-477.21,0.00039671,2]
[393799708,1762998642987,-699.48,0.00039671,2]
[393799709,1762998643000,-699.48,0.00039671,2]
[393799710,1762998643010,-291.5,0.00039671,2]
[393799711,1762998643019,-491.58,0.00039671,2]
[393799712,1762998643029,-719.36,0.00039671,2]
[393799713,1762998643038,-567.21962,0.00039673,5]
[393799714,1762998643047,-500.91524645,0.00039673,5]
[393799715,1762998643057,-505.49269083,0.00039673,5]
[393799716,1762998643066,-500.08738776,0.00039673,5]
[393799717,1762998643076,-505.19744543,0.00039673,5]
[393799718,1762998643085,-150.31432579,0.00039673,5]
[393799719,1762998643095,-500.0,0.00039673,5]
[393799720,1762998643104,-500.0,0.00039673,5]
[393799721,1762998643114,-502.85788843,0.00039673,5]
[393799722,1762998643123,-500.0,0.00039673,5]
[393799723,1762998643132,-502.60642133,0.00039673,5]
[393799724,1762998643142,-500.0,0.00039673,5]
[393799725,1762998643151,-226.13841622,0.00039676,2]
[393799726,1762998643161,-200.0,0.000397,14]
[393799727,1762998643171,-7217.96493878,0.00039737,4]
[393799729,1762998643180,-6816.82480071,0.00039737,4]
[393799734,1762998643234,-182.14306043,0.0003964,2]
[393799735,1762998643243,-83.32716981,0.00039737,4]
[393799811,1762999023382,332.03945805,0.00019891,120]
[393799812,1762999024947,195.0,0.00019891,120]
[393799813,1762999025045,195.0,0.00018987,120]
[393799814,1762999025167,195.0,0.00027545,120]
[393799816,1762999048563,188.0,0.00030137,120]
[393799820,1762999225328,1187.43048849,0.00040653,120]
[393799860,1762999741328,300.0,0.0003,120]
[393799864,1762999831719,-268.4023,0.00018083,2]
[393799865,1762999831728,-195.0,0.00019891,2]
[393799866,1762999831737,-250.0,0.00019891,2]
[393799867,1762999831746,-250.0,0.00019891,2]
[393799869,1762999831755,-150.0,0.00023953,2]
[393799871,1762999831764,-280.26907949,0.0002985,2]
[393799872,1762999831773,-751.89,0.0003,7]
[393799873,1762999831781,-300.0,0.00031,120]
[393799874,1762999831791,-200.0,0.00032,120]
[393799875,1762999831800,-504.72297806,0.00032187,3]
[393799876,1762999831817,-1069.36453118,0.00032187,3]
[393799877,1762999831827,-25.91249076,0.00032187,3]
[393799878,1762999831836,-400.0,0.0003235,3]
[393799879,1762999831845,-2489.71,0.00032351,2]
[393799880,1762999831863,-153.0,0.0003368,2]
[393799881,1762999831875,-153.0,0.0003368,2]
[393799882,1762999831884,-153.0,0.00033682,2]
[393799883,1762999831893,-153.0,0.00033704,2]
[393799884,1762999831901,-153.0,0.00033704,2]
[393799885,1762999831910,-153.0,0.00033705,2]
[393799886,1762999831920,-153.0,0.00033726,2]
[393799887,1762999831929,-153.0,0.00033726,2]
[393799888,1762999831938,-153.0,0.00033728,2]
[393799889,1762999831948,-4266.9,0.00033802,2]
[393799890,1762999831957,-3084.99,0.00033823,2]
[393799891,1762999831967,-525.09741534,0.000339,4]
[393799892,1762999831976,-200.0,0.00034,120]
[393799893,1762999831986,-2240.0,0.00034755,3]
[393799894,1762999831995,-152.0,0.00034762,3]
[393799895,1762999832004,-307.0,0.00034781,3]
[393799896,1762999832014,-500.0,0.00034849,2]
[393799897,1762999832023,-3542.3900939,0.000354,2]
[393799898,1762999832068,-550.43019999,0.000354,2]
[393799899,1762999832080,-1480.3234455,0.000354,2]
[393799900,1762999832091,-459.60393769,0.000354,2]
[393799901,1762999832104,-2366.25232292,0.000354,2]
[393799902,1762999832113,-171.4145795,0.00035421,2]
[393799903,1762999832123,-501.61257175,0.000356,5]
[393799904,1762999832132,-152.0,0.00035642,4]
[393799905,1762999832142,-200.0,0.00036,120]
[393799906,1762999832152,-3161.31990111,0.000363,3]
[393799907,1762999832162,-2355.68009889,0.000363,3]
[393799908,1762999832172,-150.0,0.00036365,2]
[393799909,1762999832182,-179.36,0.00036489,120]
[393799910,1762999832191,-2751.0,0.000365,120]
[393799911,1762999832201,-585.0,0.00036501,2]
[393799912,1762999832210,-152.0,0.00036523,5]
[393799913,1762999832219,-150.0,0.00036567,7]
[393799914,1762999832229,-19.10640262,0.00036672,120]
[393800088,1762999839946,-3897.93349642,0.00036622,2]
[393800089,1762999839958,-1189.97650358,0.00036622,2]
[393800090,1762999839967,-435.00359738,0.00036672,120]
[393800091,1762999839977,-150.0,0.00036756,2]
[393800092,1762999839986,-136.14489963,0.00036756,120]
[393800093,1762999840061,-13.85510037,0.00036756,120]
[393800094,1762999840070,-163.08276468,0.0003693,30]
[393800095,1762999840080,-150.0,0.00037148,7]
[393800096,1762999840090,-5517.0,0.000372,5]
[393800097,1762999840100,-152.0,0.00037403,6]
[393800098,1762999840110,-243.0,0.00037528,3]
[393800099,1762999840120,-645.0,0.00037671,120]
[393800100,1762999840130,-150.0,0.00037728,7]
[393800101,1762999840139,-166.7,0.00037888,2]
[393800102,1762999840148,-200.0,0.00038,120]
[393800103,1762999840157,-1153.4,0.00038253,30]
[393800104,1762999840166,-168.0,0.00038279,2]
[393800105,1762999840176,-152.0,0.00038283,7]
[393800106,1762999840187,-150.0,0.00038308,7]
[393800107,1762999840197,-1970.55,0.00038342,2]
[393800108,1762999840207,-13183.96920383,0.00038351,5]
[393800109,1762999840218,-610.0,0.0003837,2]
[393800110,1762999840229,-214.15,0.00038385,2]
[393800111,1762999840239,-478.56668374,0.00038388,2]
[393800112,1762999840248,-1008.0,0.000385,2]
[393800113,1762999840257,-168.0,0.00038583,7]
[393800114,1762999840267,-265.02437571,0.000387,120]
[393800115,1762999840276,-521.06994358,0.000388,5]
[393800116,1762999840286,-525.09741535,0.00038886,5]
[393800117,1762999840308,-150.0,0.00038889,7]
[393800118,1762999840325,-168.0,0.0003896,120]
[393800119,1762999840335,-151.75,0.00038986,2]
[393800120,1762999840344,-1240.79,0.00038986,2]
[393800122,1762999840359,-151.05,0.00038986,2]
[393800123,1762999840368,-301.16,0.00038986,2]
[393800124,1762999840377,-182.14,0.00038986,2]
[393800125,1762999840387,-174.19,0.00038986,2]
[393800126,1762999840571,-152.36,0.00038986,2]
[393800127,1762999840582,-428.39,0.00038986,2]
[393800128,1762999840593,-572.93,0.00038986,2]
[393800129,1762999840603,-416.24,0.00038986,2]
[393800130,1762999840613,-549.74,0.00038986,2]
[393800131,1762999840625,-177.14,0.00038986,2]
[393800132,1762999840635,-150.0,0.00038986,2]
[393800133,1762999840645,-169.26,0.00038986,2]
[393800134,1762999840654,-150.0,0.00038986,2]
[393800135,1762999840664,-1207.25,0.00038986,2]
[393800136,1762999840673,-150.0,0.00038986,2]
[393800137,1762999840682,-1207.25,0.00038986,2]
[393800138,1762999840691,-549.74,0.00038986,2]
[393800139,1762999840700,-150.0,0.00038986,2]
[393800140,1762999840709,-416.24,0.00038986,2]
[393800141,1762999840718,-150.0,0.00038986,2]
[393800142,1762999840727,-176.94,0.00038986,2]
[393800143,1762999840735,-169.14,0.00038986,2]
[393800144,1762999840745,-549.74,0.00038986,2]
[393800145,1762999840753,-1207.25,0.00038986,2]
[393800146,1762999840762,-150.0,0.00038986,2]
[393800147,1762999840771,-150.0,0.00038986,2]
[393800148,1762999840780,-415.8,0.00038986,2]
[393800149,1762999840789,-1207.25,0.00038986,2]
[393800150,1762999840798,-150.0,0.00038986,2]
[393800151,1762999840807,-549.74,0.00038986,2]
[393800152,1762999840816,-2412.28,0.00038986,2]
[393800153,1762999840825,-171.0,0.00039,90]
[393800154,1762999840834,-249.0,0.00039031,7]
[393800155,1762999840843,-152.0,0.00039164,8]
[393800156,1762999840853,-168.0,0.00039314,2]
[393800157,1762999840862,-4197.0,0.00039414,2]
[393800158,1762999840871,-150.0,0.00039469,7]
[393800159,1762999840880,-1000.0,0.000395,2]
[393800160,1762999840889,-168.0,0.00039528,7]
[393800161,1762999840899,-4523.75508483,0.00039539,2]
[393800162,1762999840908,-1000.0,0.00039539,2]
[393800163,1762999840917,-2500.0,0.00039539,2]
[393800164,1762999840926,-2284.81061595,0.00039548,2]
[393800170,1762999842941,-620.87859331,0.00039548,2]
[393800186,1762999845930,-602.0,0.0003815,2]
[393800189,1762999925063,250.0,0.00040653,30]
[393800190,1762999925681,250.0,0.00040653,30]
[393800191,1762999926286,250.0,0.00040653,30]
[393800192,1762999926896,250.0,0.00040653,30]
[393800193,1762999927510,250.0,0.00040653,30]
[393800194,1762999928110,250.0,0.00040653,30]
[393800195,1762999928742,250.0,0.00040653,30]
[393800196,1762999929372,250.0,0.00040653,30]
[393800209,1763000364860,250.0,0.00017,2]
[393800210,1763000605907,12991.0,0.00040655,30]
[393800211,1763000655213,342.74246169,0.00040655,30]
[393800215,1763000708456,1500.0,0.00018,2]
[393800216,1763000708480,1000.0,0.00018,2]
[393800217,1763000708508,68333.69,0.00018,2]
[393800218,1763000740230,151.95565704,0.00040655,30]
[393800220,1763000813307,5000.00335223,0.000162,5]
[393800221,1763000820981,1517.64,0.000153,2]
[393800222,1763000824654,2580.45285094,0.00015,2]
[393800226,1763000884467,-524.19896432,0.00017,2]
[393800227,1763000889616,-181.52642324,0.00017,2]
[393800228,1763000892754,-165.62450221,0.00017,2]
[393800229,1763000894759,-230.59473671,0.00017,2]
[393800230,1763000896390,-198.64236233,0.00017,2]
[393800231,1763000898543,-371.92533434,0.00017,2]
[393800233,1763000900135,-151.0,0.00017,2]
[393800234,1763000901723,-186.28594916,0.00017,2]
[393800235,1763000902116,1611.24120645,0.00040655,60]
[393800236,1763000902146,151.0,0.00016997,2]
[393800237,1763000903393,7058.26825036,0.00040655,60]
[393800238,1763000903897,-319.57235353,0.00017,2]
[393800239,1763000905368,-165.11005202,0.00017,2]
[393800240,1763000909861,-234.22842331,0.00017,2]
[393800241,1763000911491,-206.3133218,0.00017,2]
[393800242,1763000912844,151.24004835,0.0003,120]
[393800243,1763000913223,231.0256243,0.00016999,2]
[393800244,1763000913262,500.0,0.00016999,2]
[393800245,1763000913295,19.88817253,0.00016999,2]
[393800246,1763000913324,480.11182747,0.00016999,2]
[393800247,1763000913367,500.0,0.00016999,2]
[393800248,1763000913400,500.0,0.00016999,2]
[393800249,1763000913433,500.0,0.00016999,2]
[393800250,1763000913469,500.0,0.00016999,2]
[393800251,1763000913515,500.0,0.00016999,2]
[393800252,1763000913547,500.0,0.00016999,2]
[393800253,1763000913577,500.0,0.00016999,2]
[393800254,1763000913611,500.0,0.00016999,2]
[393800255,1763000913648,500.0,0.00016999,2]
[393800256,1763000913685,500.0,0.00016999,2]
[393800257,1763000913721,500.0,0.00016999,2]
[393800258,1763000913766,500.0,0.00016999,2]
[393800259,1763000913797,500.0,0.00016999,2]
[393800260,1763000913850,500.0,0.00016999,2]
[393800261,1763000913885,500.0,0.00016999,2]
[393800262,1763000913920,620.179485,0.00016999,2]
[393800263,1763000913955,500.0,0.00016999,2]
[393800264,1763000913998,500.0,0.00016999,2]
[393800265,1763000914036,399.71868753,0.00016999,2]
[393800266,1763000914061,100.28131247,0.00016999,2]
[393800267,1763000914091,500.0,0.00016999,2]
[393800268,1763000914228,500.0,0.00016999,2]
[393800269,1763000914349,500.0,0.00016999,2]
[393800270,1763000914386,500.0,0.00016999,2]
[393800271,1763000925153,7899.72868753,0.00016915,2]
[393800272,1763000925175,5378.54281547,0.00016915,2]
[393800273,1763000925434,499.99999999,0.00016999,2]
[393800274,1763000941607,300.0,0.00016999,2]
[393800275,1763001001488,300.0,0.00016999,2]
[393800276,1763001001517,300.0,0.00016999,2]
[393800277,1763001001547,1200.0,0.00016999,2]
[393800278,1763001001788,550.0,0.00016999,2]
[393800279,1763001015343,170.6,0.0001699,2]
[393800280,1763001020038,151.0,0.00016997,2]
[393800292,1763001031984,-1617.34995375,0.00017,2]
[393800293,1763001032092,-488.41,0.00017,2]
[393800294,1763001032103,-1864.55774499,0.00017,2]
[393800295,1763001032114,-4628.06958269,0.00017,2]
[393800296,1763001032147,-3209.65001136,0.00017,2]
[393800297,1763001032158,-281.55588097,0.00017,2]
[393800298,1763001032169,-2000.0,0.00017,2]
[393800299,1763001032180,-14498.70366285,0.00017,2]
[393800300,1763001032204,-806.96000115,0.00017,2]
[393800301,1763001032215,-4127.5919126,0.00017,2]
[393800302,1763001032226,-4766.54990409,0.00017,2]
[393800303,1763001032237,-3827.78709959,0.00017,2]
[393800304,1763001032248,-1093.13676866,0.00017,2]
[393800325,1763001037930,-1105.15061631,0.00017,2]
[393800326,1763001037941,-10059.08529237,0.00017,2]
[393800328,1763001038146,-283691.16972481,0.00017,2]
[393800329,1763001038156,-195.0,0.00017305,2]
[393800330,1763001038166,-1200.0,0.0001761,2]
[393800331,1763001038176,-600.0,0.000177,6]
[393800332,1763001038186,-1300.0,0.000178,6]
[393800333,1763001038196,-295.37305769,0.00017899,2]
[393800334,1763001038206,-2000.0,0.000179,6]
[393800335,1763001038216,-928.47659471,0.000179,2]
[393800336,1763001038227,-503.59272086,0.00017973,2]
[393800337,1763001038238,-500.0,0.00017973,2]
[393800338,1763001038248,-502.20263233,0.00017973,2]
[393800340,1763001038259,-502.84178259,0.00017973,2]
[393800342,1763001038269,-626.36620621,0.00017973,2]
[393800344,1763001038278,-500.0,0.00017973,2]
[393800346,1763001038288,-500.0,0.00017973,2]
[393800348,1763001038300,-500.0,0.00017973,2]
[393800350,1763001038310,-170.6,0.0001799,2]
[393800352,1763001038319,-170.6,0.0001799,2]
[393800354,1763001038329,-170.6,0.0001799,2]
[393800356,1763001038339,-170.6,0.0001799,2]
[393800358,1763001038349,-456.28659195,0.0001799,2]
[393800360,1763001038358,-151.0,0.00017997,2]
[393800362,1763001038368,-500.0,0.00017999,2]
[393800364,1763001038378,-500.0,0.00017999,2]
[393800366,1763001038388,-500.0,0.00017999,2]
[393800368,1763001038399,-500.0,0.00017999,2]
[393800370,1763001038409,-366.84520666,0.00017999,2]
[393800372,1763001038419,-560.55833853,0.00017999,2]
[393800374,1763001038429,-500.0,0.00017999,2]
[393800376,1763001038439,-500.0,0.00017999,2]
[393800378,1763001038448,-500.0,0.00017999,2]
[393800380,1763001038457,-500.0,0.00017999,2]
[393800382,1763001038467,-330.77441472,0.00017999,2]
[393800384,1763001038477,-500.0,0.00017999,2]
[393800386,1763001038486,-500.0,0.00017999,2]
[393800388,1763001038496,-150.0,0.00017999,2]
[393800390,1763001038505,-319.13635823,0.00017999,2]
[393800392,1763001038515,-158.6703515,0.00017999,2]
[393800394,1763001038525,-170.66195474,0.00017999,2]
[393800396,1763001038534,-2148081.50881379,0.00018,2]
[393800398,1763001038544,-629.16141171,0.00018,2]
[393800400,1763001038555,-1764.13159148,0.000181,2]
[393800402,1763001038564,-494.0,0.00018104,2]
[393800404,1763001038573,-1974.47,0.00018483,2]